fUST/lending_fUST_20250506
["ID","MTS","AMOUNT","RATE_DAILY","PERIOD"]
[360057185,1746528640167,-151.0,0.00019329,2]
[360057187,1746528640180,-151.0,0.00019329,2]
[360057189,1746528640192,-151.0,0.00019329,2]
[360057192,1746528640204,-220.220011,0.00019329,2]
[360057194,1746528640217,-151.0,0.00019329,2]
[360057196,1746528640229,-210.308506,0.00019329,2]
[360057199,1746528640241,-537.7476188,0.00019329,2]
[360057201,1746528640253,-151.0,0.00019329,2]
[360057203,1746528640265,-151.0,0.00019329,2]
[360057206,1746528640277,-151.0,0.00019329,2]
[360057208,1746528640290,-79827.2961807,0.00019329,2]
[360057210,1746528640307,-151.0,0.00019342,2]
[360057213,1746528640320,-202.46592839,0.0001937,2]
[360057215,1746528640332,-151.0,0.00019399,2]
[360057217,1746528640344,-151.0,0.000194,2]
[360057220,1746528640357,-151.0,0.000194,2]
[360057222,1746528640369,-151.0,0.000194,2]
[360057224,1746528640381,-151.0,0.000194,2]
[360057226,1746528640393,-151.0,0.000194,2]
[360057229,1746528640405,-151.0,0.000194,2]
[360057231,1746528640417,-151.0,0.00019499,2]
[360057233,1746528640429,-151.0,0.00019499,2]
[360057236,1746528640440,-275.282959,0.00019499,2]
[360057238,1746528640453,-151.0,0.00019499,2]
[360057240,1746528640464,-151.0,0.00019499,2]
[360057242,1746528640475,-193.587337,0.00019499,2]
[360057245,1746528640487,-151.0,0.00019499,2]
[360057247,1746528640499,-151.0,0.00019499,2]
[360057249,1746528640512,-151.0,0.000195,2]
[360057252,1746528640523,-271.16582411,0.00019502,2]
[360057254,1746528640536,-151.0,0.000196,2]
[360057256,1746528640547,-71344.66637912,0.00019602,2]
[360057258,1746528640559,-151.0,0.00019602,2]
[360057261,1746528640572,-151.0,0.00019602,2]
[360057263,1746528640584,-292.723392,0.00019602,2]
[360057265,1746528640596,-151.0,0.00019602,2]
[360057268,1746528640607,-151.0,0.00019602,2]
[360057270,1746528640619,-151.0,0.00019602,2]
[360057272,1746528640630,-151.0,0.00019602,2]
[360057275,1746528640643,-376.610461,0.00019602,2]
[360057277,1746528640653,-376.610461,0.00019602,2]
[360057279,1746528640664,-702.749997,0.00019602,2]
[360057281,1746528640677,-702.749997,0.00019602,2]
[360057283,1746528640690,-196.060462,0.00019602,2]
[360057286,1746528640703,-196.060462,0.00019602,2]
[360057288,1746528640715,-151.0,0.00019602,2]
[360057290,1746528640726,-446.419495,0.00019602,2]
[360057293,1746528640737,-446.419495,0.00019602,2]
[360057295,1746528640749,-151.0,0.00019602,2]
[360057297,1746528640761,-151.0,0.00019602,2]
[360057299,1746528640773,-1205.049544,0.00019602,2]
[360057302,1746528640786,-1205.049544,0.00019602,2]
[360057304,1746528640797,-169.091422,0.00019602,2]
[360057306,1746528640806,-169.091422,0.00019602,2]
[360057308,1746528640816,-151.0,0.00019602,2]
[360057310,1746528640826,-151.0,0.00019602,2]
[360057312,1746528640839,-151.0,0.00019602,2]
[360057314,1746528640848,-151.0,0.00019602,2]
[360057316,1746528640857,-151.0,0.00019602,2]
[360057318,1746528640866,-151.0,0.000197,2]
[360057343,1746528641100,-151.0,0.000197,2]
[360057347,1746528641127,-18429.0,0.000198,2]
[360057350,1746528641143,-5204.0,0.000198,2]
[360057352,1746528641153,-5204.0,0.000198,2]
[360057354,1746528641163,-5204.0,0.000198,2]
[360057356,1746528641172,-187.0,0.000198,2]
[360057358,1746528641182,-151.0,0.000198,2]
[360057360,1746528641193,-151.0,0.000198,2]
[360057362,1746528641202,-151.0,0.000198,2]
[360057364,1746528641212,-151.0,0.000198,2]
[360057366,1746528641221,-151.0,0.000198,2]
[360057368,1746528641231,-151.0,0.000198,2]
[360057370,1746528641240,-151.0,0.000198,2]
[360057372,1746528641249,-1001.324505,0.000198,2]
[360057374,1746528641260,-151.0,0.000198,2]
[360057376,1746528641269,-376.610461,0.000198,2]
[360057378,1746528641278,-376.610461,0.000198,2]
[360057380,1746528641288,-702.749997,0.000198,2]
[360057383,1746528641312,-702.749997,0.000198,2]
[360057385,1746528641323,-196.060462,0.000198,2]
[360057387,1746528641335,-196.060462,0.000198,2]
[360057389,1746528641347,-199.389922,0.000198,2]
[360057391,1746528641357,-446.419495,0.000198,2]
[360057393,1746528641368,-446.419495,0.000198,2]
[360057396,1746528641380,-268.97095,0.000198,2]
[360057398,1746528641391,-151.0,0.000198,2]
[360057400,1746528641401,-1205.049544,0.000198,2]
[360057402,1746528641411,-1205.049544,0.000198,2]
[360057404,1746528641421,-169.091422,0.000198,2]
[360057406,1746528641431,-169.091422,0.000198,2]
[360057408,1746528641439,-151.0,0.000198,2]
[360057410,1746528641449,-151.0,0.000198,2]
[360057412,1746528641459,-151.0,0.000198,2]
[360057414,1746528641469,-161.781952,0.000198,2]
[360057416,1746528641479,-928.7237354,0.000199,2]
[360057418,1746528641488,-151.0,0.000199,2]
[360057420,1746528641498,-178.75540657,0.000199,2]
[360057422,1746528641508,-151.0,0.000199,2]
[360057424,1746528641518,-500.0,0.00019973,2]
[360057426,1746528641528,-500.0,0.00019973,2]
[360057429,1746528641538,-500.0,0.00019973,2]
[360057431,1746528641547,-500.0,0.00019973,2]
[360057433,1746528641557,-500.0,0.00019973,2]
[360057435,1746528641567,-500.0,0.00019973,2]
[360057437,1746528641578,-500.0,0.00019973,2]
[360057439,1746528641590,-500.0,0.00019973,2]
[360057441,1746528641601,-500.0,0.00019973,2]
[360057443,1746528641610,-500.0,0.00019973,2]
[360057445,1746528641620,-500.0,0.00019973,2]
[360057447,1746528641630,-500.0,0.00019973,2]
[360057449,1746528641641,-503.48369048,0.00019973,2]
[360057451,1746528641651,-500.0,0.00019973,2]
[360057454,1746528641661,-500.0,0.00019973,2]
[360057456,1746528641672,-500.0,0.00019973,2]
[360057458,1746528641684,-500.0,0.00019973,2]
[360057460,1746528641694,-500.0,0.00019973,2]
[360057462,1746528641703,-500.0,0.00019973,2]
[360057464,1746528641713,-500.0,0.00019973,2]
[360057466,1746528641723,-500.0,0.00019973,2]
[360057468,1746528641733,-500.0,0.00019973,2]
[360057469,1746528641743,-500.0,0.00019973,2]
[360057470,1746528641754,-641.62473791,0.00019973,2]
[360057471,1746528641764,-196.060462,0.00019973,2]
[360057472,1746528641774,-196.060462,0.00019973,2]
[360057473,1746528641784,-1205.049544,0.00019973,2]
[360057474,1746528641795,-1205.049544,0.00019973,2]
[360057475,1746528641806,-169.091422,0.00019973,2]
[360057476,1746528641816,-169.091422,0.00019973,2]
[360057477,1746528641826,-332.32,0.00019978,3]
[360057478,1746528641840,-151.0,0.0001999,2]
[360057479,1746528641850,-2000.0,0.0002,4]
[360057480,1746528641860,-112509.24078577,0.0002,2]
[360057481,1746528641869,-37495.0,0.0002,2]
[360057483,1746528641878,-616.58719336,0.0002,2]
[360057485,1746528641888,-1500.0,0.0002,2]
[360057487,1746528641897,-26784.47415059,0.0002,2]
[360057489,1746528641907,-29673.41104464,0.0002,2]
[360057491,1746528641917,-1414.0,0.0002,2]
[360057493,1746528641926,-1434.0,0.0002,2]
[360057495,1746528641935,-665.0,0.0002,2]
[360057497,1746528641945,-1045.0,0.0002,7]
[360057499,1746528641955,-9100.52204086,0.0002,2]
[360057687,1746528643454,-404.0,0.00018048,2]
[360057689,1746528643464,-17001.11530832,0.0002,2]
[360057691,1746528643476,-1096.86,0.0002,2]
[360057953,1746528646286,-26463.28151699,0.0002,2]
[360057955,1746528646297,-151.0,0.0002,2]
[360057957,1746528646309,-151.0,0.0002,2]
[360057959,1746528646319,-151.0,0.0002,2]
[360057961,1746528646328,-151.0,0.0002,2]
[360057963,1746528646338,-193.061442,0.0002,2]
[360057965,1746528646347,-151.0,0.0002,2]
[360057967,1746528646356,-151.0,0.0002,2]
[360057969,1746528646366,-151.0,0.0002,2]
[360057971,1746528646375,-151.0,0.0002,2]
[360057973,1746528646385,-151.0,0.0002,2]
[360057975,1746528646394,-151.0,0.0002,2]
[360057977,1746528646404,-151.0,0.0002,2]
[360057979,1746528646413,-151.0,0.0002,2]
[360057981,1746528646422,-151.0,0.0002,2]
[360057983,1746528646431,-151.0,0.0002,2]
[360057985,1746528646440,-151.0,0.0002,2]
[360057987,1746528646450,-151.0,0.0002,2]
[360057990,1746528646459,-151.0,0.0002,2]
[360057992,1746528646468,-164.74857,0.0002,2]
[360057994,1746528646478,-376.610461,0.0002,2]
[360057996,1746528646487,-376.610461,0.0002,2]
[360057998,1746528646496,-376.610461,0.0002,2]
[360058000,1746528646506,-376.610461,0.0002,2]
[360058002,1746528646515,-376.610461,0.0002,2]
[360058004,1746528646525,-376.610461,0.0002,2]
[360058006,1746528646534,-376.610461,0.0002,2]
[360058008,1746528646544,-376.610461,0.0002,2]
[360058010,1746528646553,-376.610461,0.0002,2]
[360058012,1746528646562,-376.610459,0.0002,2]
[360058014,1746528646571,-702.749997,0.0002,2]
[360058016,1746528646580,-702.749997,0.0002,2]
[360058018,1746528646591,-702.749997,0.0002,2]
[360058020,1746528646600,-702.749997,0.0002,2]
[360058022,1746528646609,-702.749997,0.0002,2]
[360058024,1746528646618,-702.749997,0.0002,2]
[360058026,1746528646628,-702.749997,0.0002,2]
[360058028,1746528646637,-702.749998,0.0002,2]
[360058030,1746528646646,-196.060462,0.0002,2]
[360058032,1746528646656,-196.060462,0.0002,2]
[360058034,1746528646665,-196.060462,0.0002,2]
[360058036,1746528646674,-196.060462,0.0002,2]
[360058038,1746528646684,-196.060462,0.0002,2]
[360058040,1746528646693,-196.060456,0.0002,2]
[360058042,1746528646702,-446.419495,0.0002,2]
[360058044,1746528646712,-446.419495,0.0002,2]
[360058046,1746528646721,-446.419495,0.0002,2]
[360058048,1746528646731,-446.419495,0.0002,2]
[360058050,1746528646739,-446.419495,0.0002,2]
[360058052,1746528646749,-446.419495,0.0002,2]
[360058054,1746528646758,-446.419495,0.0002,2]
[360058056,1746528646767,-446.419486,0.0002,2]
[360058058,1746528646776,-1205.049544,0.0002,2]
[360058060,1746528646786,-1205.049544,0.0002,2]
[360058062,1746528646795,-1205.049544,0.0002,2]
[360058064,1746528646804,-1205.049544,0.0002,2]
[360058066,1746528646813,-1205.049544,0.0002,2]
[360058068,1746528646823,-1205.049544,0.0002,2]
[360058070,1746528646833,-1205.049544,0.0002,2]
[360058072,1746528646843,-1205.049544,0.0002,2]
[360058074,1746528646852,-1205.049544,0.0002,2]
[360058076,1746528646861,-1205.0495534,0.0002,2]
[360058078,1746528646872,-169.091422,0.0002,2]
[360058080,1746528646881,-169.091422,0.0002,2]
[360058082,1746528646890,-169.091422,0.0002,2]
[360058084,1746528646899,-169.091422,0.0002,2]
[360058086,1746528646908,-169.091422,0.0002,2]
[360058088,1746528646917,-169.091422,0.0002,2]
[360058090,1746528646927,-169.091422,0.0002,2]
[360058092,1746528646936,-169.091428,0.0002,2]
[360058094,1746528646946,-151.0,0.0002,2]
[360058096,1746528646956,-151.0,0.0002,2]
[360058098,1746528646965,-209.053712,0.0002,2]
[360058100,1746528646974,-151.0,0.0002,2]
[360058102,1746528646983,-151.0,0.0002,2]
[360058104,1746528646992,-151.0,0.0002,2]
[360058106,1746528647002,-151.0,0.0002,2]
[360058108,1746528647011,-160.0,0.0002,3]
[360058110,1746528647020,-160.0,0.0002,3]
[360058112,1746528647029,-151.3789105,0.0002,2]
[360058114,1746528647040,-1000.0,0.00020068,2]
[360058116,1746528647049,-500.0,0.00020088,2]
[360058118,1746528647058,-600.0,0.0002016,2]
[360058120,1746528647068,-600.0,0.0002037,2]
[360058122,1746528647080,-841.96455721,0.000204,3]
[360058124,1746528647092,-212.03916285,0.000204,3]
[360058126,1746528647102,-12610.21250885,0.000204,3]
[360058128,1746528647112,-4247.20777709,0.000204,3]
[360058130,1746528647120,-4247.20777687,0.000204,3]
[360058132,1746528647130,-4247.20777687,0.000204,3]
[360058134,1746528647140,-4247.20777687,0.000204,3]
[360058136,1746528647149,-4247.20777687,0.000204,3]
[360058138,1746528647158,-4247.20777687,0.000204,3]
[360058140,1746528647168,-4247.20777687,0.000204,3]
[360058142,1746528647177,-4247.20777687,0.000204,3]
[360058144,1746528647186,-4247.20777687,0.000204,3]
[360058146,1746528647196,-160.0,0.000204,3]
[360058148,1746528647205,-160.0,0.000204,3]
[360058151,1746528647214,-237.798487,0.00020548,2]
[360058153,1746528647224,-151.0,0.00020548,2]
[360058155,1746528647233,-156.086436,0.00020548,2]
[360058157,1746528647243,-151.0,0.00020555,2]
[360058159,1746528647254,-719.78832059,0.0002058,2]
[360058161,1746528647263,-200.0,0.00020586,7]
[360058163,1746528647280,-1115.56427736,0.0002061,2]
[360058165,1746528647290,-500.0,0.00020647,2]
[360058167,1746528647300,-3096.52612733,0.00020725,2]
[360058186,1746528647470,-150.0,0.00020772,2]
[360058188,1746528647480,-4247.20777687,0.00020969,4]
[360058190,1746528647489,-9700.0,0.00021,7]
[360058192,1746528647498,-272.0,0.00021,2]
[360058194,1746528647507,-272.0,0.00021,2]
[360058196,1746528647516,-156.0,0.00021,2]
[360058198,1746528647526,-3000.0,0.00021,2]
[360058200,1746528647535,-16973.0,0.00021,2]
[360058202,1746528647544,-3460.05,0.00021,2]
[360058204,1746528647554,-841.96455721,0.00021,7]
[360058206,1746528647563,-212.03916285,0.00021,7]
[360058208,1746528647572,-12610.21250885,0.00021,7]
[360058210,1746528647581,-160.0,0.00021,7]
[360058212,1746528647591,-160.0,0.00021,7]
[360058214,1746528647600,-3000.0,0.0002101,2]
[360058216,1746528647610,-3000.0,0.0002102,2]
[360058218,1746528647620,-3000.0,0.0002103,2]
[360058220,1746528647629,-546.0,0.00021035,2]
[360058222,1746528647639,-2241.0,0.00021035,2]
[360058224,1746528647648,-708.0,0.00021035,2]
[360058226,1746528647657,-150.0,0.00021035,2]
[360058228,1746528647666,-150.0,0.00021035,2]
[360058230,1746528647675,-3000.0,0.0002104,2]
[360058232,1746528647685,-386.0,0.00021045,7]
[360058234,1746528647694,-404.0,0.00021048,2]
[360058236,1746528647703,-3000.0,0.0002105,2]
[360058238,1746528647712,-3000.0,0.0002106,2]
[360058240,1746528647722,-3000.0,0.0002107,2]
[360058242,1746528647731,-3000.0,0.0002108,2]
[360058244,1746528647740,-3000.0,0.0002109,2]
[360058246,1746528647750,-3000.0,0.000211,2]
[360058248,1746528647759,-3000.0,0.0002111,2]
[360058250,1746528647769,-3000.0,0.0002112,2]
[360058252,1746528647778,-3000.0,0.0002113,2]
[360058254,1746528647787,-500.254,0.00021134,2]
[360058256,1746528647796,-3000.0,0.0002114,2]
[360058258,1746528647805,-3000.0,0.0002115,2]
[360058260,1746528647814,-3000.0,0.0002116,2]
[360058262,1746528647824,-1000.0,0.00021164,2]
[360058264,1746528647833,-3000.0,0.0002117,2]
[360058266,1746528647842,-3000.0,0.0002118,2]
[360058268,1746528647851,-3000.0,0.0002119,2]
[360058269,1746528647860,-3000.0,0.000212,2]
[360058271,1746528647871,-3000.0,0.0002121,2]
[360058273,1746528647880,-3000.0,0.0002122,2]
[360058275,1746528647889,-3000.0,0.0002123,2]
[360058277,1746528647898,-3000.0,0.0002124,2]
[360058279,1746528647908,-3000.0,0.0002125,2]
[360058281,1746528647917,-2000.0,0.0002125,4]
[360058283,1746528647926,-3000.0,0.0002126,2]
[360058285,1746528647936,-3000.0,0.0002127,2]
[360058288,1746528647946,-3000.0,0.0002128,2]
[360058290,1746528647955,-3000.0,0.0002129,2]
[360058292,1746528647965,-3000.0,0.000213,2]
[360058293,1746528647975,-3000.0,0.0002131,2]
[360058295,1746528647984,-3000.0,0.0002132,2]
[360058298,1746528647994,-3000.0,0.0002133,2]
[360058299,1746528648003,-3000.0,0.0002134,2]
[360058300,1746528648013,-3000.0,0.0002135,2]
[360058301,1746528648022,-3000.0,0.0002136,2]
[360058302,1746528648033,-3000.0,0.0002137,2]
[360058303,1746528648042,-3000.0,0.0002138,2]
[360058304,1746528648051,-3479.452573,0.0002139,2]
[360058305,1746528648060,-160.0,0.00021545,3]
[360058306,1746528648069,-800.0,0.00021658,2]
[360058307,1746528648079,-800.0,0.00021658,2]
[360058308,1746528648089,-529.74119512,0.0002166,2]
[360058309,1746528648099,-800.0,0.00021671,2]
[360058310,1746528648108,-800.0,0.00021679,2]
[360058311,1746528648117,-800.0,0.00021681,2]
[360058312,1746528648127,-800.0,0.00021684,2]
[360058313,1746528648136,-800.0,0.00021694,2]
[360058314,1746528648146,-800.0,0.00021696,2]
[360058315,1746528648156,-635.0,0.000217,2]
[360058316,1746528648166,-800.0,0.000217,2]
[360058317,1746528648175,-800.0,0.00021706,2]
[360058318,1746528648185,-800.0,0.00021708,2]
[360058319,1746528648194,-800.0,0.0002171,2]
[360058320,1746528648203,-800.0,0.00021729,2]
[360058321,1746528648212,-800.0,0.00021734,2]
[360058322,1746528648221,-800.0,0.00021743,2]
[360058323,1746528648230,-2901.23942472,0.00021748,2]
[360058324,1746528648240,-800.0,0.00021769,2]
[360058325,1746528648249,-800.0,0.00021782,2]
[360058326,1746528648258,-160.0,0.00021791,4]
[360058327,1746528648268,-800.0,0.00021794,2]
[360058328,1746528648278,-800.0,0.00021796,2]
[360058329,1746528648287,-800.0,0.00021798,2]
[360058330,1746528648300,-800.0,0.00021799,2]
[360058331,1746528648310,-672.82976058,0.000218,2]
[360058332,1746528648319,-800.0,0.000218,5]
[360058333,1746528648329,-800.0,0.00021808,2]
[360058335,1746528648338,-800.0,0.00021819,2]
[360058336,1746528648347,-800.0,0.00021826,2]
[360058338,1746528648357,-800.0,0.00021827,2]
[360058340,1746528648367,-800.0,0.00021829,2]
[360058342,1746528648377,-800.0,0.00021834,2]
[360058343,1746528648387,-800.0,0.0002184,2]
[360058344,1746528648397,-800.0,0.00021845,2]
[360058345,1746528648406,-2000.0,0.0002185,2]
[360058346,1746528648415,-800.0,0.00021857,2]
[360058347,1746528648424,-800.0,0.00021861,2]
[360058348,1746528648434,-4247.20777687,0.00021866,6]
[360058349,1746528648443,-800.0,0.00021866,2]
[360058350,1746528648453,-800.0,0.00021866,2]
[360058351,1746528648462,-800.0,0.00021874,2]
[360058352,1746528648472,-800.0,0.00021877,2]
[360058353,1746528648483,-800.0,0.00021878,2]
[360058354,1746528648492,-800.0,0.00021881,2]
[360058355,1746528648502,-800.0,0.00021889,2]
[360058356,1746528648512,-935.12940244,0.00021889,2]
[360058357,1746528648521,-800.0,0.00021896,2]
[360058358,1746528648531,-800.0,0.00021896,2]
[360058360,1746528648541,-160.0,0.00021917,2]
[360058361,1746528648550,-174.570017,0.00021918,2]
[360058362,1746528648561,-174.570017,0.00021918,2]
[360058363,1746528648571,-174.570017,0.00021918,2]
[360058364,1746528648580,-174.570017,0.00021918,2]
[360058365,1746528648590,-174.570017,0.00021918,2]
[360058366,1746528648600,-174.570017,0.00021918,2]
[360058367,1746528648609,-174.570017,0.00021918,2]
[360058368,1746528648619,-174.570017,0.00021918,2]
[360058369,1746528648629,-174.570017,0.00021918,2]
[360058371,1746528648638,-174.570017,0.00021918,2]
[360058373,1746528648647,-174.570017,0.00021918,2]
[360058375,1746528648657,-174.570017,0.00021918,2]
[360058377,1746528648668,-174.570017,0.00021918,2]
[360058379,1746528648677,-174.570018,0.00021918,2]
[360058381,1746528648687,-349.37010906,0.00022,2]
[360058383,1746528648696,-42647.67200224,0.00022,7]
[360058385,1746528648706,-1000.0,0.00022,2]
[360058387,1746528648715,-165.0,0.00022,2]
[360058389,1746528648725,-841.96455721,0.00022,7]
[360058391,1746528648735,-1747.4984,0.00022,2]
[360058393,1746528648744,-212.03916285,0.00022,7]
[360058395,1746528648754,-186.313833,0.00022,2]
[360058397,1746528648764,-12610.21250885,0.00022,7]
[360058399,1746528648774,-372.0,0.00022,2]
[360058401,1746528648783,-160.0,0.00022,7]
[360058403,1746528648793,-160.0,0.00022,7]
[360058405,1746528648803,-160.0,0.00022036,5]
[360058407,1746528648812,-291.88678669,0.000221,2]
[360058409,1746528648822,-159.574723,0.00022195,3]
[360058411,1746528648833,-841.96455721,0.000222,30]
[360058413,1746528648845,-841.96455721,0.000222,30]
[360058416,1746528648855,-212.03916285,0.000222,30]
[360058418,1746528648865,-12610.21250885,0.000222,30]
[360058419,1746528648874,-1405.52626356,0.00022248,2]
[360058421,1746528648884,-1000.0,0.0002226,2]
[360058423,1746528648894,-160.0,0.00022282,6]
[360058425,1746528648906,-500.0,0.00022466,2]
[360058427,1746528648917,-2000.0,0.000225,4]
[360058430,1746528648928,-160.0,0.00022527,7]
[360058431,1746528648937,-372.511341,0.00022603,2]
[360058433,1746528648947,-333.0,0.00022711,2]
[360058435,1746528648956,-4247.20777687,0.00022762,7]
[360058437,1746528648966,-160.0,0.00022773,8]
[360058439,1746528648977,-213.44413004,0.00022824,2]
[360058441,1746528648987,-179.58695001,0.00022992,2]
[360058444,1746528648998,-5000.0,0.00022998,2]
[360058446,1746528649007,-516.0,0.00023,3]
[360058448,1746528649018,-1133.48388028,0.00023,2]
[360058449,1746528649028,-61874.79425758,0.00023,2]
[360058603,1746529492602,-300.1408827,0.00011564,2]
[360058627,1746529832440,-151.0,0.00011559,2]
[360058628,1746529832449,-572.29188495,0.00011561,2]
[360058629,1746529832458,-500.0,0.00011561,2]
[360058630,1746529832468,-500.0,0.00011561,2]
[360058631,1746529832477,-200.0,0.00011561,2]
[360058632,1746529832486,-500.0,0.00011561,2]
[360058633,1746529832495,-500.0,0.00011561,2]
[360058634,1746529832504,-500.0,0.00011561,2]
[360058635,1746529832513,-500.0,0.00011561,2]
[360058636,1746529832522,-202.90744463,0.00011561,2]
[360058637,1746529832531,-249.58530354,0.00011561,2]
[360058638,1746529832541,-500.0,0.00011561,2]
[360058639,1746529832551,-500.0,0.00011561,2]
[360058640,1746529832560,-500.0,0.00011563,2]
[360058641,1746529832569,-500.0,0.00011563,2]
[360058642,1746529832578,-519.4155043,0.00011563,2]
[360058643,1746529832587,-500.0,0.00011563,2]
[360058644,1746529832597,-497.09058938,0.00011563,2]
[360058645,1746529832607,-500.0,0.00011563,2]
[360058646,1746529832617,-500.0,0.00011563,2]
[360058647,1746529832626,-500.0,0.00011563,2]
[360058648,1746529832636,-23318.21509436,0.00011563,2]
[360058649,1746529832646,-1713.44674102,0.00011566,2]
[360058650,1746529832655,-315.59401406,0.00015118,2]
[360058651,1746529832664,-404.0,0.00017788,2]
[360058652,1746529832673,-212.03916285,0.0001788,2]
[360058653,1746529832683,-1000.0,0.00017948,2]
[360058654,1746529832693,-150.164,0.00018048,2]
[360058655,1746529832701,-16932.46360529,0.00018414,2]
[360058658,1746529838562,-500.0,0.00011561,2]
[360058659,1746529838575,-500.0,0.00011561,2]
[360058660,1746529838585,-500.0,0.00011561,2]
[360058661,1746529838594,-269.09069713,0.00011561,2]
[360058662,1746529838603,-500.0,0.00011561,2]
[360058663,1746529838613,-9893.75885471,0.00018414,2]
[360058664,1746529838623,-546.0,0.00018415,2]
[360058665,1746529838632,-2241.0,0.00018415,2]
[360058666,1746529838644,-708.0,0.00018415,2]
[360058667,1746529838654,-264.38797594,0.000189,2]
[360058668,1746529838664,-223.506804,0.00019219,2]
[360058669,1746529838673,-160.0,0.00019222,2]
[360058670,1746529838683,-2584.13628295,0.000202,2]
[360058671,1746529838692,-2584.13628273,0.000202,2]
[360058672,1746529838702,-2584.13628273,0.000202,2]
[360058673,1746529838711,-2584.13628273,0.000202,2]
[360058674,1746529838721,-2584.13628273,0.000202,2]
[360058675,1746529838731,-2584.13628273,0.000202,2]
[360058676,1746529838740,-841.96455721,0.000203,3]
[360058677,1746529838750,-212.03916285,0.000203,3]
[360058678,1746529838759,-12610.21250885,0.000203,3]
[360058679,1746529838770,-225.43097195,0.00020658,2]
[360058680,1746529838779,-2584.13628273,0.00020659,3]
[360058681,1746529838788,-404.0,0.00020788,2]
[360058682,1746529838798,-2200.0,0.00020961,2]
[360058683,1746529838808,-3152.75,0.00021,2]
[360058684,1746529838817,-150.0,0.00021,2]
[360058685,1746529838827,-800.0,0.00021164,2]
[360058686,1746529838836,-546.0,0.00021415,2]
[360058687,1746529838845,-2241.0,0.00021415,2]
[360058688,1746529838855,-708.0,0.00021415,2]
[360058689,1746529838864,-2584.13628273,0.00021452,5]
[360058690,1746529838879,-160.0,0.0002184,3]
[360058691,1746529838889,-500.0,0.00021918,2]
[360058692,1746529838898,-500.0,0.00021918,2]
[360058693,1746529838908,-500.0,0.00021918,2]
[360058694,1746529838918,-500.0,0.00021918,2]
[360058695,1746529838928,-641.85029937,0.00021918,2]
[360058696,1746529838937,-500.0,0.00021918,2]
[360058697,1746529838947,-2584.13628273,0.00022245,6]
[360058698,1746529838956,-800.0,0.0002226,2]
[360058699,1746529838965,-635.0,0.000223,2]
[360058700,1746529838974,-160.0,0.0002238,4]
[360058701,1746529838983,-223.506804,0.00022644,2]
[360058702,1746529838993,-742.9789883,0.00022884,2]
[360058703,1746529839002,-613.70932284,0.000229,2]
[360058704,1746529839011,-160.0,0.0002292,5]
[360058705,1746529839021,-151.57018219,0.00022954,2]
[360058706,1746529839031,-24599.22,0.0002298,2]
[360058707,1746529839041,-806.03176998,0.0002298,2]
[360058708,1746529839050,-182.79,0.0002299,3]
[360058709,1746529839060,-548.39,0.0002299,3]
[360058710,1746529839070,-160.0,0.00022999,2]
[360058711,1746529839079,-16132.03889334,0.00023,2]
[360059971,1746531032535,-300.0,0.00011549,2]